[Event "*** Titled Tuesday Blitz"]
[Site "Chess.com"]
[Date "2020.05.19"]
[Round "4"]
[White "IriBu"]
[Black "LiamVrolijk"]
[Result "0-1"]
[WhiteElo "2517"]
[BlackElo "2817"]
[TimeControl "180+1"]
[EndTime "12:43:07 PDT"]
[Termination "LiamVrolijk won on time"]

1. e4 {[%clk 0:03:00.9]} 1... e5 {[%clk 0:02:59.7]} 2. Nf3 {[%clk 0:03:00.5]}
2... Nc6 {[%clk 0:03:00.1]} 3. Bb5 {[%clk 0:03:00.7]} 3... a6 {[%clk 0:03:00]}
4. Ba4 {[%clk 0:03:00.9]} 4... Nf6 {[%clk 0:03:00.6]} 5. O-O {[%clk 0:03:00.4]}
5... b5 {[%clk 0:03:00.9]} 6. Bb3 {[%clk 0:03:00.1]} 6... Bc5 {[%clk 0:03:01.5]}
7. c3 {[%clk 0:03:00.4]} 7... d6 {[%clk 0:03:01.7]} 8. Re1 {[%clk 0:03:00.5]}
8... h6 {[%clk 0:02:59]} 9. d4 {[%clk 0:02:59.5]} 9... Bb6 {[%clk 0:02:59.5]}
10. h3 {[%clk 0:02:59.9]} 10... O-O {[%clk 0:02:59.1]} 11. Be3 {[%clk
0:02:59.1]} 11... Re8 {[%clk 0:02:56.2]} 12. a4 {[%clk 0:02:54.5]} 12... Rb8
{[%clk 0:02:46.6]} 13. d5 {[%clk 0:02:53.8]} 13... Bxe3 {[%clk 0:02:44.7]} 14.
fxe3 {[%clk 0:02:50.2]} 14... Ne7 {[%clk 0:02:43.4]} 15. Nbd2 {[%clk 0:02:49.8]}
15... Ng6 {[%clk 0:02:38.7]} 16. Rf1 {[%clk 0:02:48.6]} 16... Bd7 {[%clk
0:01:58]} 17. axb5 {[%clk 0:02:47.4]} 17... axb5 {[%clk 0:01:58.9]} 18. Qe1
{[%clk 0:02:46.6]} 18... c6 {[%clk 0:01:39.5]} 19. Ra6 {[%clk 0:02:41]} 19...
Rb6 {[%clk 0:01:36.7]} 20. Ra7 {[%clk 0:02:35.8]} 20... cxd5 {[%clk 0:01:32.7]}
21. exd5 {[%clk 0:02:34.6]} 21... Rb8 {[%clk 0:01:32]} 22. Ra6 {[%clk
0:02:30.3]} 22... Qc7 {[%clk 0:01:31.1]} 23. e4 {[%clk 0:02:25.2]} 23... Ra8
{[%clk 0:01:30.1]} 24. Rxa8 {[%clk 0:02:17.6]} 24... Rxa8 {[%clk 0:01:31]} 25.
Nh4 {[%clk 0:02:10.9]} 25... Qc5+ {[%clk 0:01:22.3]} 26. Kh1 {[%clk 0:02:07.2]}
26... Nxh4 {[%clk 0:01:21]} 27. Qxh4 {[%clk 0:02:08.1]} 27... Qe3 {[%clk
0:01:21.6]} 28. Qf2 {[%clk 0:02:01.5]} 28... Qxf2 {[%clk 0:01:14.9]} 29. Rxf2
{[%clk 0:02:02.4]} 29... Kf8 {[%clk 0:01:15.1]} 30. Rf1 {[%clk 0:02:01.3]} 30...
Ke7 {[%clk 0:01:15.2]} 31. Bc2 {[%clk 0:01:57.2]} 31... Nh5 {[%clk 0:01:09.6]}
32. Kh2 {[%clk 0:01:55.8]} 32... Ra2 {[%clk 0:01:05.9]} 33. Rb1 {[%clk
0:01:53.7]} 33... Nf6 {[%clk 0:01:00]} 34. Bb3 {[%clk 0:01:53.3]} 34... Ra8
{[%clk 0:00:59.4]} 35. c4 {[%clk 0:01:46.4]} 35... b4 {[%clk 0:00:58.2]} 36. Rc1
{[%clk 0:01:41.8]} 36... Ra5 {[%clk 0:00:58]} 37. Kg3 {[%clk 0:01:38.9]} 37...
Bc8 {[%clk 0:00:58.4]} 38. Kf3 {[%clk 0:01:38.5]} 38... Nd7 {[%clk 0:00:58.8]}
39. Bc2 {[%clk 0:01:10.4]} 39... Ra2 {[%clk 0:00:58]} 40. Rb1 {[%clk 0:01:10.5]}
40... Nc5 {[%clk 0:00:58.4]} 41. Ke3 {[%clk 0:01:02.3]} 41... h5 {[%clk
0:00:53.5]} 42. Bb3 {[%clk 0:01:00.2]} 42... Ra7 {[%clk 0:00:51.8]} 43. Bc2
{[%clk 0:00:59.9]} 43... Bd7 {[%clk 0:00:48.7]} 44. Nb3 {[%clk 0:00:59.7]} 44...
Ba4 {[%clk 0:00:39.7]} 45. Ra1 {[%clk 0:00:59.9]} 45... Rc7 {[%clk 0:00:26.3]}
46. Nxc5 {[%clk 0:00:47.9]} 46... Bxc2 {[%clk 0:00:27.2]} 47. Nd3 {[%clk
0:00:37.3]} 47... Rxc4 {[%clk 0:00:25.9]} 48. Ra7+ {[%clk 0:00:37]} 48... Kf6
{[%clk 0:00:26.2]} 49. Rd7 {[%clk 0:00:34.6]} 49... Bxd3 {[%clk 0:00:22.7]} 50.
Kxd3 {[%clk 0:00:35.5]} 50... Rd4+ {[%clk 0:00:21.3]} 51. Ke3 {[%clk 0:00:35.8]}
51... Rc4 {[%clk 0:00:20.3]} 52. Rxd6+ {[%clk 0:00:35.6]} 52... Kg5 {[%clk
0:00:21]} 53. Kd3 {[%clk 0:00:31.3]} 53... Rd4+ {[%clk 0:00:20.6]} 54. Ke3
{[%clk 0:00:31.4]} 54... Rc4 {[%clk 0:00:21.2]} 55. Rb6 {[%clk 0:00:30.3]} 55...
f5 {[%clk 0:00:17.7]} 56. exf5 {[%clk 0:00:26.9]} 56... Kxf5 {[%clk 0:00:18.6]}
57. g3 {[%clk 0:00:23.1]} 57... g5 {[%clk 0:00:18.1]} 58. Rb8 {[%clk 0:00:20.6]}
58... Rd4 {[%clk 0:00:17.3]} 59. Rf8+ {[%clk 0:00:19]} 59... Kg6 {[%clk
0:00:17.7]} 60. Rd8 {[%clk 0:00:18.6]} 60... h4 {[%clk 0:00:11.9]} 61. gxh4
{[%clk 0:00:17.3]} 61... Rxh4 {[%clk 0:00:10.7]} 62. Rb8 {[%clk 0:00:17.1]}
62... Kf5 {[%clk 0:00:06.6]} 63. Rf8+ {[%clk 0:00:16.5]} 63... Kg6 {[%clk
0:00:07.1]} 64. Rb8 {[%clk 0:00:16.9]} 64... Kf6 {[%clk 0:00:07]} 65. Rf8+
{[%clk 0:00:15.1]} 65... Ke7 {[%clk 0:00:07.4]} 66. Rf5 {[%clk 0:00:14.4]} 66...
Kd6 {[%clk 0:00:07.9]} 67. Rxg5 {[%clk 0:00:14]} 67... Rxh3+ {[%clk 0:00:07.9]}
68. Kd2 {[%clk 0:00:14.3]} 68... Kxd5 {[%clk 0:00:07.7]} 69. Rg8 {[%clk
0:00:14.7]} 69... Rh2+ {[%clk 0:00:07.3]} 70. Kc1 {[%clk 0:00:13.9]} 70... e4
{[%clk 0:00:07.7]} 71. Rd8+ {[%clk 0:00:13.7]} 71... Kc4 {[%clk 0:00:08.1]} 72.
Re8 {[%clk 0:00:12.4]} 72... Kd3 {[%clk 0:00:07.9]} 73. Rd8+ {[%clk 0:00:11.8]}
73... Kc4 {[%clk 0:00:08.4]} 74. Re8 {[%clk 0:00:11.3]} 74... Re2 {[%clk
0:00:07.4]} 75. Kd1 {[%clk 0:00:10.4]} 75... Re3 {[%clk 0:00:07.8]} 76. Kd2
{[%clk 0:00:10.5]} 76... Rd3+ {[%clk 0:00:08.1]} 77. Kc2 {[%clk 0:00:11]} 77...
b3+ {[%clk 0:00:08.6]} 78. Kc1 {[%clk 0:00:11.5]} 78... Kd4 {[%clk 0:00:09.5]}
79. Rd8+ {[%clk 0:00:10.3]} 79... Ke3 {[%clk 0:00:09.8]} 80. Rh8 {[%clk
0:00:09.3]} 80... Kf4 {[%clk 0:00:08.7]} 81. Rf8+ {[%clk 0:00:08.6]} 81... Ke3
{[%clk 0:00:08.5]} 82. Rh8 {[%clk 0:00:08.6]} 82... Ke2 {[%clk 0:00:08.4]} 83.
Rh2+ {[%clk 0:00:08.6]} 83... Kf3 {[%clk 0:00:08.9]} 84. Rh3+ {[%clk 0:00:08.6]}
84... Kf4 {[%clk 0:00:07.2]} 85. Rh8 {[%clk 0:00:05.5]} 85... Rg3 {[%clk
0:00:07]} 86. Rf8+ {[%clk 0:00:05.3]} 86... Ke3 {[%clk 0:00:07.4]} 87. Rf1
{[%clk 0:00:02.8]} 87... Rg2 {[%clk 0:00:07]} 88. Re1+ {[%clk 0:00:02.8]} 88...
Kf3 {[%clk 0:00:07.5]} 89. Rd1 {[%clk 0:00:02.3]} 89... e3 {[%clk 0:00:07.2]}
90. Rf1+ {[%clk 0:00:02.1]} 90... Rf2 {[%clk 0:00:07.4]} 91. Re1 {[%clk
0:00:02]} 91... Ke4 {[%clk 0:00:07.7]} 92. Rd1 {[%clk 0:00:01.6]} 92... e2
{[%clk 0:00:07.3]} 93. Re1 {[%clk 0:00:01.3]} 93... Ke3 {[%clk 0:00:07.8]} 0-1

[Event "*** Titled Tuesday Blitz"]
[Site "Chess.com"]
[Date "2020.05.19"]
[Round "4"]
[White "Barmen_EV"]
[Black "SirMittensofMittensville"]
[Result "1-0"]
[WhiteElo "2507"]
[BlackElo "2636"]
[TimeControl "180+1"]
[EndTime "12:43:20 PDT"]
[Termination "Barmen_EV won by checkmate"]

1. d4 {[%clk 0:03:00.9]} 1... Nf6 {[%clk 0:02:59.9]} 2. c4 {[%clk 0:03:00.8]}
2... e6 {[%clk 0:03:00.6]} 3. Nc3 {[%clk 0:03:00.9]} 3... Bb4 {[%clk 0:03:01.3]}
4. e3 {[%clk 0:03:00.7]} 4... O-O {[%clk 0:03:01.6]} 5. Bd3 {[%clk 0:03:00.5]}
5... d5 {[%clk 0:03:01.8]} 6. Nf3 {[%clk 0:03:00.7]} 6... c5 {[%clk 0:03:02.3]}
7. cxd5 {[%clk 0:03:00.2]} 7... exd5 {[%clk 0:03:02.5]} 8. dxc5 {[%clk 0:03:00]}
8... Nbd7 {[%clk 0:03:02]} 9. Bd2 {[%clk 0:02:59.8]} 9... Nxc5 {[%clk
0:03:02.3]} 10. Be2 {[%clk 0:02:59.5]} 10... Bf5 {[%clk 0:03:00.7]} 11. O-O
{[%clk 0:02:48.2]} 11... Rc8 {[%clk 0:02:52.2]} 12. a3 {[%clk 0:02:45.7]} 12...
Bxc3 {[%clk 0:02:52.4]} 13. Bxc3 {[%clk 0:02:46.6]} 13... Nce4 {[%clk 0:02:53]}
14. Bd4 {[%clk 0:02:43.2]} 14... a6 {[%clk 0:02:45.2]} 15. Rc1 {[%clk
0:02:31.1]} 15... Qd6 {[%clk 0:02:40.6]} 16. b4 {[%clk 0:02:24.5]} 16... h6
{[%clk 0:02:27.7]} 17. h3 {[%clk 0:01:57.4]} 17... Qe6 {[%clk 0:02:24.4]} 18.
Ne5 {[%clk 0:01:42.7]} 18... Nd7 {[%clk 0:02:09.2]} 19. Nd3 {[%clk 0:01:30.3]}
19... Qd6 {[%clk 0:01:56.1]} 20. Nf4 {[%clk 0:01:24.1]} 20... Rfd8 {[%clk
0:01:49.2]} 21. Ba1 {[%clk 0:01:01.3]} 21... Ndf6 {[%clk 0:01:42]} 22. Qd4
{[%clk 0:00:52.6]} 22... Ng5 {[%clk 0:01:41]} 23. Qe5 {[%clk 0:00:38]} 23...
Qxe5 {[%clk 0:01:36.3]} 24. Bxe5 {[%clk 0:00:38.9]} 24... Nfe4 {[%clk
0:01:27.5]} 25. Rxc8 {[%clk 0:00:32.2]} 25... Bxc8 {[%clk 0:01:27.3]} 26. Rd1
{[%clk 0:00:30.4]} 26... Be6 {[%clk 0:01:22.7]} 27. Bc4 {[%clk 0:00:27.9]} 27...
Nd6 {[%clk 0:00:55.9]} 28. Bxd5 {[%clk 0:00:25.9]} 28... Nb5 {[%clk 0:00:56.5]}
29. a4 {[%clk 0:00:22]} 29... Na3 {[%clk 0:00:56.9]} 30. Nxe6 {[%clk 0:00:15.3]}
30... fxe6 {[%clk 0:00:56.6]} 31. Bb3 {[%clk 0:00:13.2]} 31... Rxd1+ {[%clk
0:00:56.3]} 32. Bxd1 {[%clk 0:00:14.1]} 32... Nc4 {[%clk 0:00:52.9]} 33. Bd4
{[%clk 0:00:11.9]} 33... b5 {[%clk 0:00:47.3]} 34. axb5 {[%clk 0:00:11]} 34...
axb5 {[%clk 0:00:48.2]} 35. Bc2 {[%clk 0:00:10.6]} 35... e5 {[%clk 0:00:36.7]}
36. Bc5 {[%clk 0:00:10.1]} 36... Ne6 {[%clk 0:00:34.7]} 37. Bb3 {[%clk
0:00:07.6]} 37... Kf7 {[%clk 0:00:31.3]} 38. Ba7 {[%clk 0:00:05.8]} 38... Kf6
{[%clk 0:00:22.3]} 39. Bb8 {[%clk 0:00:05.5]} 39... Nd2 {[%clk 0:00:19.4]} 40.
Bd5 {[%clk 0:00:05.5]} 40... Ng5 {[%clk 0:00:15.3]} 41. f4 {[%clk 0:00:05.1]}
41... exf4 {[%clk 0:00:14.2]} 42. exf4 {[%clk 0:00:06]} 42... Nge4 {[%clk
0:00:14.9]} 43. Be5+ {[%clk 0:00:05.2]} 43... Kg6 {[%clk 0:00:15.6]} 44. g4
{[%clk 0:00:04.1]} 44... Nf6 {[%clk 0:00:11.8]} 45. f5+ {[%clk 0:00:03.3]} 45...
Kh7 {[%clk 0:00:12.3]} 46. Bxf6 {[%clk 0:00:02.6]} 46... gxf6 {[%clk 0:00:12.4]}
47. Bc6 {[%clk 0:00:03.5]} 47... Kg7 {[%clk 0:00:07.3]} 48. Bxb5 {[%clk
0:00:03.2]} 48... Nf3+ {[%clk 0:00:07.7]} 49. Kh1 {[%clk 0:00:02.2]} 49... Nd4
{[%clk 0:00:08.6]} 50. Bd3 {[%clk 0:00:01.9]} 50... Kf7 {[%clk 0:00:09.1]} 51.
b5 {[%clk 0:00:02.5]} 51... Ke7 {[%clk 0:00:09.5]} 52. Kg2 {[%clk 0:00:02.8]}
52... Kd6 {[%clk 0:00:09.9]} 53. Kg3 {[%clk 0:00:03.3]} 53... Ke5 {[%clk
0:00:09.5]} 54. Kh4 {[%clk 0:00:04.2]} 54... Kf4 {[%clk 0:00:07.8]} 55. Kh5
{[%clk 0:00:04.9]} 55... Kg3 {[%clk 0:00:08.5]} 56. b6 {[%clk 0:00:04.3]} 56...
Kxh3 {[%clk 0:00:08]} 57. b7 {[%clk 0:00:05.2]} 57... Nc6 {[%clk 0:00:08.3]} 58.
Be4 {[%clk 0:00:06.1]} 58... Nb8 {[%clk 0:00:08.7]} 59. Bf3 {[%clk 0:00:06.4]}
59... Kg3 {[%clk 0:00:09]} 60. Bd1 {[%clk 0:00:07]} 60... Kf4 {[%clk 0:00:09]}
61. Kxh6 {[%clk 0:00:07.9]} 61... Ke5 {[%clk 0:00:09.5]} 62. Kg6 {[%clk
0:00:07.6]} 62... Nd7 {[%clk 0:00:09.4]} 63. Bf3 {[%clk 0:00:07.1]} 63... Kd6
{[%clk 0:00:09]} 64. Be4 {[%clk 0:00:05.6]} 64... Ke5 {[%clk 0:00:08.6]} 65. Bg2
{[%clk 0:00:04.9]} 65... Kf4 {[%clk 0:00:09]} 66. g5 {[%clk 0:00:02.9]} 66...
fxg5 {[%clk 0:00:08.7]} 67. f6 {[%clk 0:00:03.8]} 67... g4 {[%clk 0:00:08.5]}
68. f7 {[%clk 0:00:03.1]} 68... Ke5 {[%clk 0:00:09.4]} 69. Bh1 {[%clk
0:00:02.5]} 69... Ke6 {[%clk 0:00:09.2]} 70. b8=Q {[%clk 0:00:02.1]} 70... Nxb8
{[%clk 0:00:08.3]} 71. f8=Q {[%clk 0:00:03]} 71... Nd7 {[%clk 0:00:09.2]} 72.
Qf7+ {[%clk 0:00:02.3]} 72... Kd6 {[%clk 0:00:10.1]} 73. Qf2 {[%clk 0:00:02.3]}
73... Ne5+ {[%clk 0:00:11]} 74. Kh5 {[%clk 0:00:02.4]} 74... Ke6 {[%clk
0:00:11.8]} 75. Qg3 {[%clk 0:00:03.3]} 75... Kd6 {[%clk 0:00:12.6]} 76. Bf3
{[%clk 0:00:03.7]} 76... Ke6 {[%clk 0:00:13.5]} 77. Bxg4+ {[%clk 0:00:03.9]}
77... Kf6 {[%clk 0:00:14.4]} 78. Qf4+ {[%clk 0:00:03.1]} 78... Kg7 {[%clk
0:00:13.2]} 79. Qxe5+ {[%clk 0:00:04]} 79... Kh7 {[%clk 0:00:13.9]} 80. Qd5
{[%clk 0:00:03.2]} 80... Kh8 {[%clk 0:00:14.8]} 81. Qc6 {[%clk 0:00:04.1]} 81...
Kg7 {[%clk 0:00:15.7]} 82. Bf3 {[%clk 0:00:03]} 82... Kf8 {[%clk 0:00:16.6]} 83.
Be4 {[%clk 0:00:03.6]} 83... Ke7 {[%clk 0:00:17.5]} 84. Bd3 {[%clk 0:00:04.2]}
84... Kf7 {[%clk 0:00:18.4]} 85. Qc4+ {[%clk 0:00:05.1]} 85... Ke7 {[%clk
0:00:19.3]} 86. Qd4 {[%clk 0:00:05.5]} 86... Ke6 {[%clk 0:00:19.7]} 87. Qe4+
{[%clk 0:00:06.3]} 87... Kd6 {[%clk 0:00:19.9]} 88. Qf5 {[%clk 0:00:05.3]} 88...
Kc6 {[%clk 0:00:20.2]} 89. Bc4 {[%clk 0:00:04.6]} 89... Kd6 {[%clk 0:00:21.1]}
90. Qd5+ {[%clk 0:00:03.8]} 90... Kc7 {[%clk 0:00:21.9]} 91. Qe6 {[%clk
0:00:04.6]} 91... Kb7 {[%clk 0:00:22.1]} 92. Bd5+ {[%clk 0:00:04.1]} 92... Kc7
{[%clk 0:00:23]} 93. Qc6+ {[%clk 0:00:03.5]} 93... Kd8 {[%clk 0:00:23.2]} 94.
Qb7 {[%clk 0:00:04.4]} 94... Ke8 {[%clk 0:00:23.5]} 95. Be6 {[%clk 0:00:04.7]}
95... Kf8 {[%clk 0:00:23.4]} 96. Qf7# {[%clk 0:00:03.7]} 1-0

[Event "*** Titled Tuesday Blitz"]
[Site "Chess.com"]
[Date "2020.05.19"]
[Round "4"]
[White "Gareth-Bale11"]
[Black "Chessmatus"]
[Result "1-0"]
[WhiteElo "2709"]
[BlackElo "2493"]
[TimeControl "180+1"]
[EndTime "12:43:30 PDT"]
[Termination "Gareth-Bale11 won by resignation"]

1. e4 {[%clk 0:02:59.8]} 1... e5 {[%clk 0:02:59.7]} 2. Nf3 {[%clk 0:02:58.7]}
2... Nc6 {[%clk 0:02:58.4]} 3. Bc4 {[%clk 0:02:56.6]} 3... Bc5 {[%clk
0:02:57.9]} 4. c3 {[%clk 0:02:55.6]} 4... Nf6 {[%clk 0:02:58.1]} 5. d4 {[%clk
0:02:55.6]} 5... exd4 {[%clk 0:02:58.4]} 6. e5 {[%clk 0:02:56]} 6... d5 {[%clk
0:02:56.6]} 7. Be2 {[%clk 0:02:55.7]} 7... Ne4 {[%clk 0:02:56.1]} 8. cxd4 {[%clk
0:02:55.8]} 8... Bb6 {[%clk 0:02:56.4]} 9. Be3 {[%clk 0:02:55.8]} 9... O-O
{[%clk 0:02:55.1]} 10. Nc3 {[%clk 0:02:53.8]} 10... Bf5 {[%clk 0:02:51.4]} 11.
Qb3 {[%clk 0:02:49.4]} 11... Nxc3 {[%clk 0:02:21.1]} 12. bxc3 {[%clk 0:02:48.1]}
12... Ba5 {[%clk 0:02:10.2]} 13. O-O {[%clk 0:02:46.6]} 13... Rb8 {[%clk
0:02:07.1]} 14. Rad1 {[%clk 0:02:34.9]} 14... h6 {[%clk 0:02:01.8]} 15. Nd2
{[%clk 0:02:20.6]} 15... Ne7 {[%clk 0:01:56.1]} 16. f4 {[%clk 0:01:59.1]} 16...
Be6 {[%clk 0:01:22.4]} 17. Bf2 {[%clk 0:01:52.8]} 17... f5 {[%clk 0:01:19.1]}
18. exf6 {[%clk 0:01:50.3]} 18... Rxf6 {[%clk 0:01:18.7]} 19. g3 {[%clk
0:01:50.1]} 19... c6 {[%clk 0:01:13.4]} 20. Nf3 {[%clk 0:01:45.6]} 20... Nf5
{[%clk 0:01:09.8]} 21. g4 {[%clk 0:01:37.6]} 21... Nd6 {[%clk 0:01:05.4]} 22.
Bh4 {[%clk 0:01:37]} 22... Bxg4 {[%clk 0:01:05.6]} 23. Rde1 {[%clk 0:01:26.9]}
23... Ne4 {[%clk 0:00:51.4]} 24. Ne5 {[%clk 0:01:16.4]} 24... Bh3 {[%clk
0:00:48.4]} 25. Rf3 {[%clk 0:01:12.9]} 25... Bf5 {[%clk 0:00:45.9]} 26. Re3
{[%clk 0:00:43.5]} 26... Qd6 {[%clk 0:00:38.4]} 27. Bxf6 {[%clk 0:00:42.6]}
27... Qxf6 {[%clk 0:00:39.3]} 28. Bf3 {[%clk 0:00:38.5]} 28... Kh7 {[%clk
0:00:38.1]} 29. Qb2 {[%clk 0:00:31.1]} 29... Bb6 {[%clk 0:00:28.3]} 30. Kh1
{[%clk 0:00:29.2]} 30... Qh4 {[%clk 0:00:25.8]} 31. Qg2 {[%clk 0:00:23.7]} 31...
Qxf4 {[%clk 0:00:21.7]} 32. Rg1 {[%clk 0:00:18.9]} 32... Rg8 {[%clk 0:00:20.7]}
33. Ree1 {[%clk 0:00:10.5]} 33... Ng5 {[%clk 0:00:18.8]} 34. Bh5 {[%clk
0:00:10]} 34... Be4 {[%clk 0:00:16.4]} 35. Rxe4 {[%clk 0:00:09.5]} 35... dxe4
{[%clk 0:00:15.5]} 36. Bg6+ {[%clk 0:00:09.4]} 36... Kh8 {[%clk 0:00:15.5]} 37.
Rf1 {[%clk 0:00:06.9]} 37... Rf8 {[%clk 0:00:06.3]} 38. Rxf4 {[%clk 0:00:06.3]}
38... Rxf4 {[%clk 0:00:07.2]} 39. h4 {[%clk 0:00:05.1]} 39... Rxh4+ {[%clk
0:00:04.8]} 40. Kg1 {[%clk 0:00:05.5]} 40... Rf4 {[%clk 0:00:05.1]} 41. Qg3
{[%clk 0:00:05.3]} 41... Rf6 {[%clk 0:00:03.6]} 42. Kg2 {[%clk 0:00:05]} 42...
e3 {[%clk 0:00:03.5]} 43. Qxe3 {[%clk 0:00:04.5]} 43... Bc7 {[%clk 0:00:03.4]}
44. Bh5 {[%clk 0:00:04.6]} 44... Ne6 {[%clk 0:00:03.3]} 45. Ng4 {[%clk
0:00:03.7]} 45... Nf4+ {[%clk 0:00:03.2]} 46. Kg1 {[%clk 0:00:03.9]} 46... Rf8
{[%clk 0:00:01.9]} 47. Ne5 {[%clk 0:00:01.7]} 47... Nxh5 {[%clk 0:00:02.2]} 48.
Ng6+ {[%clk 0:00:01.5]} 48... Kg8 {[%clk 0:00:03.1]} 49. Nxf8 {[%clk 0:00:02.4]}
49... Kxf8 {[%clk 0:00:04]} 50. Qf3+ {[%clk 0:00:03]} 50... Nf6 {[%clk
0:00:04.9]} 51. Qf5 {[%clk 0:00:02.9]} 51... Kf7 {[%clk 0:00:05]} 52. Qf1 {[%clk
0:00:03.3]} 52... Bd6 {[%clk 0:00:05.4]} 53. Kg2 {[%clk 0:00:04.2]} 53... b5
{[%clk 0:00:05.8]} 54. Qd3 {[%clk 0:00:04.1]} 54... Ke6 {[%clk 0:00:06.3]} 55.
Qf3 {[%clk 0:00:04.6]} 55... Nd5 {[%clk 0:00:06]} 56. c4 {[%clk 0:00:05]} 56...
bxc4 {[%clk 0:00:06.1]} 57. Qe2+ {[%clk 0:00:05.2]} 57... Kd7 {[%clk 0:00:05.9]}
58. Qg4+ {[%clk 0:00:04.7]} 58... Kc7 {[%clk 0:00:06.5]} 59. Qxg7+ {[%clk
0:00:05.6]} 59... Be7 {[%clk 0:00:07.1]} 60. Qxh6 {[%clk 0:00:05.6]} 60... c3
{[%clk 0:00:07.7]} 61. Kf1 {[%clk 0:00:05.7]} 61... c2 {[%clk 0:00:07.6]} 62.
Ke2 {[%clk 0:00:05.5]} 62... Ba3 {[%clk 0:00:07.7]} 63. Qh2+ {[%clk 0:00:04.4]}
63... Kb6 {[%clk 0:00:07.4]} 64. Qb8+ {[%clk 0:00:03.5]} 64... Ka6 {[%clk
0:00:07.8]} 65. Qc8+ {[%clk 0:00:03.6]} 65... Ka5 {[%clk 0:00:07.4]} 66. Qd8+
{[%clk 0:00:03]} 66... Kb5 {[%clk 0:00:08]} 67. Qb8+ {[%clk 0:00:02.8]} 67...
Kc4 {[%clk 0:00:08.5]} 68. Qb3+ {[%clk 0:00:01.2]} 68... Kxd4 {[%clk 0:00:09]}
69. Qxc2 {[%clk 0:00:02.1]} 69... Nc3+ {[%clk 0:00:09.4]} 70. Kf3 {[%clk
0:00:02.2]} 70... Nd5 {[%clk 0:00:09.3]} 71. Qe4+ {[%clk 0:00:02]} 71... Kc5
{[%clk 0:00:09.5]} 72. Qd3 {[%clk 0:00:02.9]} 72... Bb4 {[%clk 0:00:09.5]} 73.
Qc2+ {[%clk 0:00:02.6]} 73... Kd6 {[%clk 0:00:10]} 74. Kg4 {[%clk 0:00:03.5]}
74... a5 {[%clk 0:00:10.4]} 75. Kf3 {[%clk 0:00:03]} 75... a4 {[%clk 0:00:10.3]}
76. Qxa4 {[%clk 0:00:02.6]} 76... Bc5 {[%clk 0:00:10.4]} 77. Qb3 {[%clk
0:00:02.8]} 77... Bb6 {[%clk 0:00:10.2]} 78. Qd3 {[%clk 0:00:02.7]} 78... c5
{[%clk 0:00:10.5]} 79. Qg6+ {[%clk 0:00:03]} 79... Ke5 {[%clk 0:00:10.2]} 80.
Qh5+ {[%clk 0:00:03.2]} 80... Kd4 {[%clk 0:00:10.6]} 81. Qh6 {[%clk 0:00:03.5]}
81... c4 {[%clk 0:00:10.6]} 82. Qg7+ {[%clk 0:00:03.5]} 82... Kd3 {[%clk
0:00:10.7]} 83. Qg6+ {[%clk 0:00:03.7]} 83... Kd4 {[%clk 0:00:10.9]} 84. Qg7+
{[%clk 0:00:03.9]} 84... Kd3 {[%clk 0:00:11.5]} 85. Qe5 {[%clk 0:00:04.2]} 85...
Nc3 {[%clk 0:00:08.5]} 86. Qd6+ {[%clk 0:00:04]} 86... Bd4 {[%clk 0:00:08]} 87.
a3 {[%clk 0:00:04.1]} 87... Nb5 {[%clk 0:00:07.9]} 88. Qg6+ {[%clk 0:00:03.9]}
88... Kc3 {[%clk 0:00:08.4]} 89. Qa6 {[%clk 0:00:03.2]} 89... Nc7 {[%clk
0:00:06.7]} 90. Qa5+ {[%clk 0:00:02.9]} 90... Kd3 {[%clk 0:00:07.3]} 91. Qxc7
{[%clk 0:00:03.8]} 91... c3 {[%clk 0:00:07.9]} 92. Qh7+ {[%clk 0:00:03.5]} 92...
Kd2 {[%clk 0:00:07.8]} 93. Ke4 {[%clk 0:00:03.4]} 93... c2 {[%clk 0:00:07.4]}
94. Qh2+ {[%clk 0:00:02.9]} 94... Kd1 {[%clk 0:00:05]} 95. Kd3 {[%clk
0:00:03.1]} 95... Bc3 {[%clk 0:00:03.7]} 96. Qh1+ {[%clk 0:00:01.6]} 1-0